[Event "XIII Marques de Pombal 2022"]
[Site "Pombal"]
[Date "2022.10.09"]
[Round "6.4"]
[White "Goncalves, Samuel Jesus Pereira"]
[Black "Paiva, Manuel Maria Fonseca"]
[Result "0-1"]
[ECO "A48"]
[WhiteElo "2072"]
[BlackElo "1451"]
[Annotator "TA"]
[PlyCount "110"]
[EventDate "2022.09.28"]
[EventType "swiss"]
[EventCountry "POR"]
[SourceTitle "playchess.com"]
[Source "ChessBase"]
[SourceQuality "1"]
[TimeControl "5400+30"]

{[%evp 9,110,-6,-6,0,11,0,0,-27,12,17,20,0,20,-14,16,12,12,1,42,41,43,17,80,78,84,58,68,40,50,35,62,57,67,42,51,39,53,56,58,3,9,10,35,0,0,-231,-216,-260,-266,-243,-161,-439,-437,-412,-297,-595,-581,-906,-549,-1106,-741,-724,-10,-10,-10,-10,-10,-10,-10,-10,-10,-10,-10,-10,0,0,0,0,19,0,0,0,0,-8,-8,-8,-8,-8,-8,-489,-36,-36,-36,-972,-958,-817,-167,-4134,-2868,-29981,-29982,-29981,-29981]} 1. d4 {[%emt 0:00:03]} Nf6 {[%emt 0:00:19]} 2. Nf3 {[%emt 0:00:13]} g6 {[%emt 0:00:37]} 3. Nc3 {[%emt 0:00:10][%cal Bb1c3,Bc3b5,Bb5a3][%mdl 32]} d5 {[%emt 0:02:09]} 4. Bf4 {[%emt 0:00:29]} Bg7 {[%emt 0:01:04]} 5. Nb5 {[%emt 0:04:19]} Na6 {[%emt 0:00:22]} 6. e3 {[%emt 0:00:37] D00: 1 d4 d5: Unusual lines.} Ne4 {[%emt 0:11:16] [#]} 7. Be2 $146 {[%emt 0:19:39]} ({Predecessor:} 7. Bd3 c6 8. Nc3 Nxc3 9. bxc3 Qa5 10. Qd2 c5 11. O-O O-O 12. Rfb1 c4 13. Be2 {1-0 (50) Martirosyan,H (2617)-Jones,G (2670) Chess.com INT 2020}) 7... c6 {[%emt 0:04:59]} 8. Na3 {[%emt 0:02:01] The position is equal.} Qa5+ {[%emt 0:04:00]} 9. c3 {[%emt 0:00:25]} O-O {[%emt 0:04:56]} (9... Nxc3 $2 10. Qd2 $18) 10. Qb3 {[%emt 0:01:50]} Qb6 {[%emt 0:06:22]} 11. Nb1 {[%emt 0:05:45]} Bg4 {[%emt 0:05:39]} 12. Nbd2 {[%emt 0:02:15]} Nxd2 {[%emt 0:01:56]} 13. Kxd2 {[%emt 0:02:12]} c5 {[%emt 0:08:53]} 14. Qxb6 {[%emt 0:03:20]} axb6 {[%emt 0:00:09]} 15. h3 {[%emt 0:00:18]} Bxf3 {[%emt 0:05:45]} (15... Bd7 $11) 16. Bxf3 $16 {[%emt 0:00:43]} (16. gxf3 cxd4 17. exd4 Rfc8 $11) 16... e6 {[%emt 0:00:09]} 17. Be2 {[%emt 0:04:00]} Rfc8 {[%emt 0:03:06]} 18. Rhb1 {[%emt 0:11:24]} Nb8 {[%emt 0:02:39][%cal Ba6b8,Bb8c6,Bc6e7,Be7d5][%mdl 32]} 19. b4 {[%emt 0:02:10]} c4 {[%emt 0:01:46]} 20. a4 {[%emt 0:03:07]} Nc6 {[%emt 0:02:06]} 21. Ra3 {[%emt 0:05:06]} Ra7 {[%emt 0:03:08]} 22. Rba1 {[%emt 0:06:36]} Rca8 {[%emt 0:03:37][%cal Ob6b5]} 23. e4 {[%emt 0:03:41]} dxe4 {[%emt 0:08:30][%cal Ob6b5,Bd5e4,Be4e3][%mdl 32]} 24. Be3 {[%emt 0:04:11]} (24. Bxc4 $14 Rc8 25. Bb5) 24... Ne7 {[%emt 0:06:34][%cal Ob6b5]} (24... b5 25. d5 Nd4 26. cxd4 $16 (26. Bxd4 Bxd4 27. cxd4 exd5 $16)) 25. Bxc4 {[%emt 0:03:24]} Nd5 {[%emt 0:00:49]} (25... Rc8 $5 {[%cal Rc8c4]} 26. Ba2 Ra6 $11) 26. Be2 {[%emt 0:09:46]} f5 {[%emt 0:01:34][%cal Bf7f5,Bf5f4][%mdl 32] Threatens to win with ...f4.} 27. f3 $2 {[%emt 0:02:12]} (27. Ke1 $11) 27... f4 $19 {[%emt 0:01:40]} 28. Bg1 {[%emt 0:00:05]} e3+ {[%emt 0:00:12]} 29. Kd3 {[%emt 0:01:15]} Rc8 {[%emt 0:03:38][%cal Ob6b5]} 30. Rb1 $2 {[%emt 0:00:55]} (30. g3) 30... b5 {[%emt 0:01:03]} 31. a5 {[%emt 0:00:01]} e5 {[%emt 0:00:34][%cal Be6e5,Be5d4][%mdl 32]} 32. Rbb3 $2 {[%emt 0:02:01]} (32. Ke4 Rxc3 33. Rbb3 Nf6+ 34. Kxe5 Nh5+ 35. Kd5 Nf6+ 36. Ke5 Nh5+ 37. Kd5) 32... exd4 {[%emt 0:00:30]} 33. g3 {[%emt 0:01:24]} dxc3 {[%emt 0:00:51] ( -> ...c2)} 34. Bd1 {[%emt 0:00:37]} Nxb4+ {[%emt 0:00:06]} 35. Rxb4 {[%emt 0:00:08]} Bf8 $2 {[%emt 0:01:06]} ({Black should try} 35... Rd8+ $19 36. Ke2 Rd2+ 37. Ke1 c2 38. Bxc2 Rxc2 39. Rxb5 Bc3+ 40. Kd1 e2+ 41. Kxc2 e1=Q 42. Bxa7 Qd2+ 43. Kb3 Bb2) 36. Rxc3 $11 {[%emt 0:01:01]} Rd8+ {[%emt 0:01:23]} ({But not} 36... Rxc3+ 37. Kxc3 Bc5 38. Bb3+ (38. Rxb5 e2 $14) 38... Kg7 39. Re4 (39. Rxb5 e2 $11) 39... fxg3 40. Bxe3 b4+ 41. Kd2 Bxe3+ 42. Kxe3 $16) 37. Rd4 {[%emt 0:00:01]} Rxd4+ {[%emt 0:00:17]} 38. Kxd4 {[%emt 0:00:00]} Bg7+ {[%emt 0:00:14]} 39. Kd3 {[%emt 0:00:06]} Bxc3 {[%emt 0:00:14]} 40. Kxc3 {[%emt 0:00:07]} Rxa5 {[%emt 0:00:43] aiming for ...Ra1.} 41. gxf4 {[%emt 0:00:18]} Ra1 {[%emt 0:00:41]} 42. Bb3+ {[%emt 0:00:09]} Kg7 {[%emt 0:00:11]} 43. Bxe3 {[%emt 0:00:03]} Rh1 {[%emt 0:01:47]} 44. Bd4+ {[%emt 0:00:46]} Kf8 {[%emt 0:00:07]} 45. Bd5 {[%emt 0:02:27]} Rxh3 {[%emt 0:00:24]} 46. Bxb7 {[%emt 0:00:04]} h5 {[%emt 0:01:13][%cal Bh7h5,Bh5h4][%mdl 32]} 47. Kd3 {[%emt 0:00:23]} Rh1 {[%emt 0:01:29]} 48. Ke3 {[%emt 0:00:59]} h4 {[%emt 0:01:21]} 49. Bc6 $2 {[%emt 0:00:59][%mdl 8192]} (49. Kf2 $11 {and White stays safe.}) 49... Rc1 $2 {[%emt 0:00:43]} ({Black should play} 49... h3 $19 50. Bc5+ Kg7 51. Bd4+ Kh6) 50. Bd7 $15 {[%emt 0:00:45]} ({Not} 50. Bxb5 $2 h3 51. Kd2 h2 52. Kxc1 h1=Q+ 53. Kd2 Qxf3 54. Bc5+ Kg7 55. Bd4+ Kf7 56. Bc4+ Ke7 57. Bc5+ Kf6 $19) 50... b4 {[%emt 0:01:13][%mdl 1024] Hoping for ...b3. Black has compensation.} 51. f5 $2 {[%emt 0:00:48][%mdl 8192] [#]} (51. Kd2 $15 Rh1 52. f5 (52. Bc5+ Kg7 $17)) 51... Ke7 $1 $19 {[%emt 0:01:11][%mdl 64] Deflection} 52. Ba4 {[%emt 0:00:33]} gxf5 $2 {[%emt 0:00:25]} (52... h3 {And now ...h2 would win.} 53. f6+ Kf8) 53. Kf4 $2 {[%emt 0:00:00]} (53. Kf2) 53... Rc4 {[%emt 0:00:30]} 54. Ke3 {[%emt 0:00:26]} f4+ {[%emt 0:00:37]} 55. Kd3 {[%emt 0:00:26] [#]} Rxd4+ $1 {[%emt 0:00:12][%mdl 512] Weighted Error Value: White=1.03/Black=0.65} 0-1

[Event "XIII Marques de Pombal 2022"]
[Site "Pombal"]
[Date "2022.10.08"]
[Round "6.5"]
[White "Gomes, Micael"]
[Black "Cruz, Joao De Sousa Da"]
[Result "*"]
[WhiteElo "1516"]
[BlackElo "1321"]
[Annotator "NA RC COMBH"]
[PlyCount "35"]
[EventDate "2022.09.28"]
[EventType "swiss"]
[EventCountry "POR"]
[SourceTitle "playchess.com"]
[Source "ChessBase"]
[SourceQuality "1"]
[TimeControl "5400+30"]

1. e4 c5 2. Nf3 d6 3. d4 cxd4 4. Nxd4 Nf6 5. Nc3 a6 6. Bg5 e6 7. Bd3 Be7 8. f4 Nc6 9. Nxc6 bxc6 10. Qf3 d5 11. e5 Nd7 12. Bxe7 Qxe7 13. O-O Nc5 14. Qg4 g6 15. Kh1 Rb8 16. Rab1 a5 17. Qe2 h5 18. Nd1 *

[Event "XIII Marques de Pombal 2022"]
[Site "Pombal"]
[Date "2022.10.09"]
[Round "6.5"]
[White "Gomes, Micael"]
[Black "Almeida, Joao Pedro Dias"]
[Result "0-1"]
[ECO "B95"]
[WhiteElo "1516"]
[BlackElo "1901"]
[Annotator "TA"]
[PlyCount "86"]
[EventDate "2022.09.28"]
[EventType "swiss"]
[EventCountry "POR"]
[SourceTitle "playchess.com"]
[Source "ChessBase"]
[SourceQuality "1"]
[TimeControl "5400+30"]

{[%evp 14,86,-5,-60,42,29,42,0,0,0,0,0,0,0,0,-24,-21,-31,-17,-29,-25,-33,-19,-37,-22,-53,-18,-81,-44,-71,-65,-56,-43,-72,-83,-118,-133,-132,-88,-89,-102,-88,-83,-88,-93,-210,-165,-181,-185,-160,-197,-195,-190,-275,-286,-370,-351,-359,-345,-29978,-29971,-29983,-29984,-29991,-29992,-29993,-29994,-29994,-29994,-29994,-29995,-29995,-29996,-29996,-29997]} 1. e4 c5 2. Nf3 d6 3. d4 cxd4 4. Nxd4 Nf6 5. Nc3 a6 6. Bg5 e6 7. Bd3 Be7 8. f4 (8. Qf3 $11) 8... Nc6 {B98: Sicilian Najdorf: 6 Bg5 e6 7 f4 Be7, sidelines.} ({Better is} 8... h6 $15 9. Bh4 Nxe4 10. Bxe7 (10. Nxe4 Bxh4+ 11. g3 d5 $17) 10... Nxc3) 9. Nxc6 $14 bxc6 10. Qf3 {[#]} d5 $146 {The position is equal.} ({Predecessor:} 10... Nd7 11. Bxe7 Qxe7 12. O-O-O Bb7 13. Rhe1 e5 14. g3 O-O 15. Bc4 Nb6 16. Bb3 a5 17. Qe3 Qc7 18. fxe5 dxe5 19. Qc5 a4 20. Bc4 Ba6 21. Bxa6 Rxa6 22. Rd3 {1-0 (22) Hausner,I (2408)-Zimniok,L (2135) Ostrava 2012}) 11. e5 Nd7 12. Bxe7 Qxe7 13. O-O Nc5 14. Qg4 g6 (14... O-O {feels hotter.} 15. Rad1 a5 16. Qh3 g6) 15. Kh1 Rb8 {[%cal Ba8b8,Bb8b4,Bb4d4][%mdl 32]} 16. Rab1 a5 17. Qe2 h5 18. Nd1 Nxd3 19. Qxd3 Qa7 20. Ne3 (20. Qd2 $11 {remains equal.}) 20... Rb4 21. b3 Rd4 22. Qc3 c5 23. Rbd1 {Strongly threatening Rxd4.} O-O 24. Qb2 Re4 $36 {[%mdl 2048] Black has strong initiative.} 25. Qc1 Ba6 26. c4 d4 27. Nc2 Qa8 28. Ne1 Bb7 {Hoping for ...Re2.} 29. Qd2 {Prevents Re2.} (29. Kg1 $17 {was worth a try.}) 29... h4 {[%cal Oh4h3]} 30. Nd3 {[#]} h3 $1 {...hxg2+ is the strong threat.} 31. Kg1 ({But not} 31. Nxc5 $2 hxg2+ 32. Qxg2 Bc6 $19) 31... hxg2 32. Rf2 {[#]} Rc8 {[%cal Bf8c8,Bc8d8,Bd8d1][%mdl 32]} ({Not} 32... Re3 33. Nxc5 Rd8 34. Nxb7 Qxb7 35. Qxa5 $11 (35. Qxe3 $2 dxe3 36. Rxd8+ Kg7 $19)) 33. Rxg2 (33. f5 $142 exf5 34. Qg5) 33... Re3 $19 34. Rg5 Bf3 35. Re1 Qe4 36. Rxe3 (36. Rg3 $19) 36... dxe3 {Black mates.} 37. Qc3 Rd8 38. Ne1 Rd1 39. Rg3 Qxf4 40. Qxa5 Be2 {[%csl Ge2][%cal Rf4f1]} 41. Rxg6+ fxg6 {[%csl Ge2][%cal Rf4f1]} 42. Qa8+ Kg7 {[%csl Ge2][%cal Rf4f1]} 43. Qb7+ Kh6 {Weighted Error Value: White=0.33/Black=0.11 (very precise)} 0-1

[Event "XIII Marques de Pombal 2022"]
[Site "Pombal"]
[Date "2022.10.09"]
[Round "6.6"]
[White "Gori, Andrea"]
[Black "Gama, Joao Tiago Corregedo"]
[Result "1-0"]
[ECO "B18"]
[WhiteElo "1982"]
[BlackElo "1685"]
[Annotator "TA"]
[PlyCount "195"]
[EventDate "2022.09.28"]
[EventType "swiss"]
[EventCountry "POR"]
[SourceTitle "playchess.com"]
[Source "ChessBase"]
[SourceQuality "1"]
[TimeControl "5400+30"]

{[%evp 23,195,27,33,20,68,11,17,19,111,54,210,210,197,200,187,204,206,187,192,199,190,195,175,122,218,214,215,214,428,421,428,425,415,426,782,400,414,278,270,254,250,213,212,203,193,172,238,225,212,204,257,181,179,124,164,190,181,163,183,105,166,115,145,149,193,153,189,196,183,164,162,150,141,160,180,123,153,21,19,31,50,14,12,6,2,7,47,0,0,-16,13,6,188,181,281,228,227,220,550,552,308,0,0,0,8,0,0,0,10,0,52,52,52,8,8,8,52,7,63,64,77,11,1031,245,245,245,245,245,245,245,245,245,372,246,275,285,320,372,372,0,0,0,0,0,29973,29974,29974,29975,29976,29977,29979,29979,29979,29980,29978,29978,29978,29979,29979,29980,29980,29981,29981,29977,29980,29981,29980,29981,29988,29989,29989,29990,29990,29991]} 1. e4 {[%emt 0:00:07]} c6 {[%emt 0:00:02]} 2. d4 {[%emt 0:01:40]} d5 {[%emt 0:00:34]} 3. Nc3 {[%emt 0:00:08]} dxe4 {[%emt 0:00:04]} 4. Nxe4 {[%emt 0:00:11]} Bf5 {[%emt 0:00:05]} 5. Ng3 {[%emt 0:01:37]} Bg6 {[%emt 0:00:08]} 6. f4 {[%emt 0:05:20]} e6 {[%emt 0:03:11]} 7. Nf3 {[%emt 0:01:37]} Nd7 {[%emt 0:01:08]} 8. h4 {[%emt 0:02:42]} h6 {[%emt 0:00:17]} 9. h5 {[%emt 0:00:40]} Bh7 {[%emt 0:00:05]} 10. Bd3 {[%emt 0:00:07]} Qc7 {[%emt 0:03:00]} 11. Bxh7 {[%emt 0:03:47]} Rxh7 {[%emt 0:00:02]} 12. Qd3 {[%emt 0:00:12]} Rh8 {[%emt 0:00:25]} 13. Ne5 {[%emt 0:03:16] B18: Classical Caro-Kann: 4...Bf5 sidelines.} Nxe5 {[%emt 0:01:41]} (13... Be7 $11 {is more appropriate.}) 14. fxe5 {[%emt 0:00:45]} (14. dxe5 $14 Ne7 15. Be3) 14... O-O-O $1 $11 {[%emt 0:00:32]} 15. O-O {The position is equal.} Bc5 {[%emt 0:03:36]} (15... c5 $11 {remains equal.}) 16. Be3 {[%emt 0:11:05]} (16. c3 $1 $16) 16... f6 $2 {[%emt 0:11:03]} ({Black should play} 16... Nf6 $14) 17. Qc4 $18 {[%emt 0:02:37]} Bb6 {[%emt 0:05:42]} 18. Qxe6+ {[%emt 0:03:06]} Qd7 {[%emt 0:00:05]} 19. Qxd7+ {[%emt 0:04:47]} Rxd7 {[%emt 0:00:04]} 20. Nf5 $36 {[%emt 0:00:15][%mdl 2048] Black is under strong pressure.} fxe5 {[%emt 0:04:04]} 21. dxe5 {[%emt 0:00:17]} Bxe3+ {[%emt 0:00:06]} 22. Nxe3 {[%emt 0:00:12] Black must now prevent Rf8+.} Ne7 {[%emt 0:00:08]} 23. c4 {[%emt 0:05:23]} (23. b3 $18) 23... g6 {[%emt 0:11:20] [#]} (23... c5 $16 {keeps fighting.}) 24. e6 $1 {[%emt 0:05:52]} Rd6 {[%emt 0:00:35]} 25. hxg6 {[%emt 0:00:13][%cal Bh5g6,Bg6g7][%mdl 32] Strongly threatening g7.} Rxe6 $2 {[%emt 0:02:05]} (25... Rg8 {was worth a try.} 26. g7 (26. Rf7 Rxe6 27. Nc2 Rexg6 $11) 26... Rxg7) 26. g7 {[%emt 0:01:00]} Rg8 {[%emt 0:00:04]} 27. Rf8+ {[%emt 0:00:36]} Kc7 {[%emt 0:01:03]} 28. Nf5 {[%emt 0:00:22]} Re2 {[%emt 0:03:03]} (28... Kb6 $142 29. Rf1 Re4) 29. g3 {[%emt 0:06:00] Threatens to win with Rf7.} Kb6 {[%emt 0:05:03]} 30. Nxe7 {[%emt 0:03:04]} Rxg7 {[%emt 0:00:10]} 31. Nf5 {[%emt 0:00:17][%csl LRg7,LRh6]} Rd7 {[%emt 0:00:27]} 32. b3 {[%emt 0:04:29] Rh8 is the strong threat.} Rdd2 {[%emt 0:01:20] [#]} 33. Nh4 {[%emt 0:00:13] Inhibits Rg2+.} a5 {[%emt 0:03:36]} 34. Rf3 {[%emt 0:07:14]} Kc5 {[%emt 0:17:48]} (34... Rb2 $142 35. a3 Rec2) 35. a3 {[%emt 0:01:06]} Rb2 {[%emt 0:00:40]} 36. Raf1 {[%emt 0:02:13]} h5 {[%emt 0:04:24]} 37. Rd1 {[%emt 0:06:38]} Rec2 {[%emt 0:02:20]} 38. Rdd3 {[%emt 0:01:09]} (38. Rf5+ $18 Kb6 39. Rf3 (39. Rxh5 Rxb3 40. Nf5 a4 $16)) 38... Re2 {[%emt 0:01:20]} 39. Rf5+ {[%emt 0:01:38]} Kb6 {[%emt 0:00:11]} 40. Rf1 {[%emt 0:01:21]} Kc5 {[%emt 0:00:08]} 41. Rfd1 {[%emt 0:05:21]} (41. Rdf3 $18) 41... Rec2 {[%emt 0:01:45]} (41... Ra2 $16 42. Nf3 Rxa3) 42. Re1 {[%emt 0:00:32]} (42. Nf3 $18) 42... Kb6 {[%emt 0:00:30]} 43. Rf3 {[%emt 0:00:35]} Kc5 {[%emt 0:01:20]} 44. Ree3 {[%emt 0:01:08]} Rb1+ {[%emt 0:00:39]} 45. Rf1 {[%emt 0:00:11]} Rbb2 {[%emt 0:00:03]} 46. Rf5+ {[%emt 0:03:11]} Kb6 {[%emt 0:00:36]} 47. a4 {[%emt 0:01:11]} Rb1+ {[%emt 0:00:42]} 48. Rf1 {[%emt 0:00:28]} Rbb2 {[%emt 0:00:06]} 49. Ref3 {[%emt 0:00:25]} (49. Rd1 $18) 49... Rd2 {[%emt 0:03:29]} 50. R1f2 {[%emt 0:03:25]} (50. Rc1 $16) 50... Rxf2 $11 {[%emt 0:00:13]} 51. Rxf2 {[%emt 0:00:11]} Rxb3 {[%emt 0:00:03][%mdl 4096] Endgame KRN-KR} 52. Nf3 {[%emt 0:00:49]} Rc3 {[%emt 0:03:00]} 53. Kg2 {[%emt 0:02:03] And now Ne5 would win.} Rxc4 {[%emt 0:01:24]} 54. Ra2 {[%emt 0:00:08]} Rb4 {[%emt 0:02:19]} 55. Kh3 {[%emt 0:00:12]} (55. Ne5 $14) 55... Kc5 {[%emt 0:00:49]} 56. Ra1 {[%emt 0:01:23]} Kd5 {[%emt 0:00:21][%mdl 1024] Black has compensation.} 57. Ne1 {[%emt 0:00:18]} Ke6 $2 {[%emt 0:01:13]} (57... Kc4 $11) 58. Nd3 $18 {[%emt 0:00:23]} Rb6 {[%emt 0:01:47]} (58... Rc4 $142 59. Nf4+ Kf5 60. Nxh5 Rb4) 59. Nf4+ {[%emt 0:00:22]} Kf5 {[%emt 0:00:39]} 60. Rc1 {[%emt 0:00:54]} (60. Nxh5 Rb4 61. Nf4 c5) 60... Ra6 $2 {[%emt 0:01:52]} (60... Ke4 61. Rc5 (61. Nxh5 Rb3 $18) 61... Rb1) 61. Nxh5 {[%emt 0:01:28]} Kg6 {[%emt 0:02:04]} 62. Rb1 $2 {[%emt 0:00:27]} Kxh5 $11 {[%emt 0:00:12]} 63. Rxb7 {[%emt 0:00:14] KR-KR} Kg6 {[%emt 0:00:25]} 64. Rc7 {[%emt 0:00:15]} Kg5 {[%emt 0:00:25]} 65. g4 {[%emt 0:00:24]} Kg6 {[%emt 0:01:51] Inhibits Rf7.} 66. Kh4 {[%emt 0:00:07]} Kh6 {[%emt 0:00:05]} (66... Rb6 $11) 67. Rc8 {[%emt 0:01:37]} Kg7 {[%emt 0:01:50] Against Rh8} 68. Kg5 {[%emt 0:00:17]} (68. Re8 $5 {[%cal Rh4g5]}) 68... Rb6 {[%emt 0:01:01]} 69. Rc7+ {[%emt 0:00:35]} Kg8 {[%emt 0:00:09]} 70. Ra7 {[%emt 0:00:29]} Rb4 {[%emt 0:00:47]} (70... c5 $11) 71. Rxa5 $14 {[%emt 0:00:10] White is more active.} c5 $1 {[%emt 0:00:05]} 72. Kf5 {[%emt 0:01:55]} ({White should try} 72. Ra8+ $16 Kf7 73. Kf5) 72... Kg7 $2 {[%emt 0:00:55][%mdl 8192]} (72... c4 $11) 73. g5 $2 {[%emt 0:00:18]} (73. Ra7+ Kf8 74. g5) 73... c4 $18 {[%emt 0:00:29]} 74. Ra7+ {[%emt 0:00:36]} Kg8 {[%emt 0:00:20]} 75. Ke4 {[%emt 0:00:15]} ({Don't play} 75. a5 $6 Rb8 $16) 75... c3+ {[%emt 0:00:23]} 76. Kd3 {[%emt 0:00:09]} Rc4 {[%emt 0:00:28] Hoping for ...c2.} 77. Kc2 {[%emt 0:00:35]} (77. Kxc4 $2 {loses.} c2 78. Kb5 (78. Ra8+ $2 Kg7 $19) 78... c1=Q $19) 77... Rc5 {[%emt 0:00:17]} (77... Rg4 {might work better.} 78. a5 Rxg5 79. Kxc3 Rg3+ 80. Kb4 Rg4+ 81. Kc5 Rg5+ 82. Kd4 Rg4+ 83. Kc5 Rg5+ 84. Kc6 Rf5) 78. g6 {[%emt 0:01:23]} Rc6 {[%emt 0:00:29]} 79. Re7 {[%emt 0:00:31]} Rc4 {[%emt 0:02:03]} 80. a5 {[%emt 0:00:18] Intending a6 and mate.} Ra4 {[%emt 0:00:05]} 81. Re5 $2 {[%emt 0:00:39]} (81. Ra7 $18) 81... Ra3 $1 $11 {[%emt 0:00:13]} 82. Rc5 {[%emt 0:01:07]} Kg7 {[%emt 0:00:15]} 83. Rg5 {[%emt 0:00:15]} Kg8 $2 {[%emt 0:00:28][%mdl 8192] Black is on the road to losing.} (83... Kf8 $11) 84. g7 {[%emt 0:00:13] White mates.} Ra1 {[%emt 0:01:08]} 85. Kxc3 {[%emt 0:00:10]} Ra2 {[%emt 0:00:41]} 86. Kc4 {[%emt 0:00:19]} Rb2 {[%emt 0:01:02]} 87. Kc5 {[%emt 0:00:14]} Ra2 {[%emt 0:00:43]} 88. Kb6 {[%emt 0:00:11]} Rb2+ {[%emt 0:00:07]} 89. Ka7 {[%emt 0:00:12]} Rb1 {[%emt 0:00:17]} 90. a6 {[%emt 0:00:13]} Rb2 {[%emt 0:00:10]} 91. Rg6 {[%emt 0:00:26]} Rb1 92. Rb6 {[%emt 0:00:30]} Rf1 {[%emt 0:00:22]} 93. Rb7 {[%emt 0:00:16]} Re1 {[%emt 0:01:32]} 94. Ka8 {[%emt 0:00:11]} Ra1 {[%emt 0:00:18]} 95. a7 {[%emt 0:00:23]} Kh7 {[%emt 0:00:53]} 96. Kb8 {[%emt 0:00:14]} Re1 {[%emt 0:00:45]} 97. a8=Q {[%emt 0:00:22]} Re8+ {[%emt 0:00:13]} 98. Ka7 {[%emt 0:00:11] Weighted Error Value: White=0.43/Black=0.40} 1-0

[Event "XIII Marques de Pombal 2022"]
[Site "Pombal"]
[Date "2022.10.08"]
[Round "6.7"]
[White "Ferreira, Eduardo Jose Fernand"]
[Black "Figueiredo, Mario Jose da Rocha"]
[Result "1/2-1/2"]
[ECO "C42"]
[WhiteElo "1641"]
[BlackElo "1842"]
[Annotator "NA RC COMBH"]
[PlyCount "52"]
[EventDate "2022.09.28"]
[EventType "swiss"]
[EventCountry "POR"]
[SourceTitle "playchess.com"]
[Source "ChessBase"]
[SourceQuality "1"]
[TimeControl "5400+30"]

1. e4 {[%emt 0:00:25]} e5 {[%emt 0:00:30]} 2. Nf3 {[%emt 0:00:11]} Nf6 {[%emt 0:02:14]} 3. Nxe5 {[%emt 0:00:52]} d6 {[%emt 0:00:06]} 4. Nf3 {[%emt 0:00:18]} Nxe4 {[%emt 0:00:06]} 5. d4 {[%emt 0:01:56]} d5 {[%emt 0:00:15]} 6. Bd3 {[%emt 0:00:20]} Bf5 {[%emt 0:00:23]} 7. O-O {[%emt 0:00:46]} Be7 {[%emt 0:00:45]} 8. Re1 {[%emt 0:01:17]} O-O {[%emt 0:00:21]} 9. c4 {[%emt 0:00:43]} c6 {[%emt 0:00:11]} 10. Nc3 {[%emt 0:01:19]} Nxc3 {[%emt 0:00:52]} 11. bxc3 {[%emt 0:00:36]} Bxd3 {[%emt 0:06:44]} 12. Qxd3 {[%emt 0:00:08]} dxc4 {[%emt 0:02:31]} 13. Qxc4 {[%emt 0:00:27]} Nd7 {[%emt 0:01:18]} 14. Bf4 {[%emt 0:07:52]} Nb6 {[%emt 0:13:12]} 15. Qb3 {[%emt 0:01:12]} Bf6 {[%emt 0:02:29]} 16. Rad1 {[%emt 0:09:32]} (16. c4 $14) 16... Qd5 $11 {[%emt 0:03:22]} 17. Be5 {[%emt 0:05:17]} Bxe5 {[%emt 0:02:43]} 18. Rxe5 {[%emt 0:00:41]} Qxb3 {[%emt 0:00:29]} 19. axb3 {[%emt 0:00:08]} Rfe8 {[%emt 0:00:41]} 20. Rde1 {[%emt 0:00:23]} Kf8 {[%emt 0:01:06]} 21. c4 {[%emt 0:06:48]} f6 {[%emt 0:03:09]} 22. Rxe8+ {[%emt 0:00:53]} Rxe8 {[%emt 0:00:12]} 23. Rxe8+ {[%emt 0:00:42]} Kxe8 {[%emt 0:00:10]} 24. Kf1 {[%emt 0:00:12]} a5 {[%emt 0:00:55]} 25. Nd2 {[%emt 0:05:20]} a4 {[%emt 0:03:23]} 26. bxa4 {[%emt 0:00:35]} Nxa4 1/2-1/2